bitfinex-derivatives/quotes_BTCF0:USTF0_20240830
["timestamp","ask_amount","ask_price","bid_price","bid_amount"]
[1724976873279,0.5,59250.0,59247.0,0.086371]
[1724976873581,0.5,59250.0,59247.0,0.090841]
[1724976874080,0.5,59250.0,59247.0,0.088841]
[1724976874276,0.5,59250.0,59247.0,0.090841]
[1724976874472,0.084368,59249.0,59247.0,0.00647]
[1724976874675,0.5,59250.0,59247.0,0.00747]
[1724976875280,0.584367,59250.0,59247.0,0.00747]
[1724976876084,0.5,59250.0,59247.0,0.00747]
[1724976876279,0.5,59250.0,59247.0,0.003]
[1724976876672,0.5,59250.0,59242.0,0.148256]
[1724976876871,0.084378,59242.0,59219.0,0.00088]
[1724976877079,0.084378,59242.0,59216.0,0.09761542]
[1724976877080,0.3608,59225.0,59222.0,0.084406]
[1724976877385,0.00025317,59229.0,59228.0,0.084398]
[1724976877576,0.00025317,59229.0,59228.0,0.974398]
[1724976877881,0.3608,59239.0,59228.0,1.75732]
[1724976878079,0.3608,59245.0,59238.0,0.29]
[1724976878871,0.3608,59245.0,59242.0,0.084377]
[1724976879479,0.3608,59245.0,59242.0,0.092377]
[1724976880080,0.3708,59245.0,59242.0,0.085377]
[1724976880279,0.3798,59245.0,59242.0,0.086377]
[1724976880986,0.3798,59245.0,59243.0,0.0471]
[1724976881183,0.3798,59245.0,59244.0,0.29]
[1724976881385,0.3778,59245.0,59244.0,0.880735]
[1724976882679,0.3688,59245.0,59244.0,0.880735]
[1724976882888,0.3718,59245.0,59244.0,0.881735]
[1724976883084,0.3828,59245.0,59244.0,0.881735]
[1724976883283,0.3828,59245.0,59244.0,0.375375]
[1724976884485,0.3828,59245.0,59244.0,0.376375]
[1724976885488,0.3828,59245.0,59244.0,4.146375]
[1724976886290,0.3838,59245.0,59244.0,4.146375]
[1724976889389,0.3698,59245.0,59244.0,4.145375]
[1724976889692,0.3778,59245.0,59244.0,4.146375]
[1724976890394,0.3778,59245.0,59244.0,4.195675]
[1724976890591,0.3688,59245.0,59244.0,4.194675]
[1724976890889,0.3778,59245.0,59244.0,4.244875]
[1724976891087,0.017,59245.0,59244.0,4.244875]
[1724976892491,0.008,59245.0,59244.0,4.243875]
[1724976892691,0.017,59245.0,59244.0,4.244875]
[1724976892993,0.009,59245.0,59244.0,4.243875]
[1724976893194,0.017,59245.0,59244.0,4.244875]
[1724976898098,0.13129466,59247.0,59245.0,0.084373]
[1724976898699,0.084368,59249.0,59246.0,3.77449]
[1724976899399,0.01,59247.0,59246.0,3.77449]
[1724976899590,0.01,59247.0,59246.0,3.858862]
[1724976899786,0.017,59247.0,59246.0,3.858862]
[1724976900196,0.08437,59248.0,59246.0,3.859862]
[1724976900403,0.08437,59248.0,59246.0,3.860862]
[1724976900602,0.084371,59247.0,59246.0,3.860862]
[1724976900994,0.084371,59247.0,59246.0,3.859862]
[1724976901198,0.091371,59247.0,59246.0,0.00649]
[1724976901496,0.091371,59247.0,59246.0,0.002]
[1724976902211,0.091371,59247.0,59246.0,0.001]
[1724976902411,0.093371,59247.0,59246.0,0.002]
[1724976907415,0.093371,59247.0,59246.0,0.086372]
[1724976907615,0.009,59247.0,59246.0,0.086372]
[1724976910511,0.5,59261.0,59252.0,0.084364]
[1724976910824,0.02922437,59265.0,59264.0,0.084347]
[1724976911014,0.084331,59275.0,59270.0,0.084337]
[1724976911213,0.02922624,59277.0,59266.0,0.06747845]
[1724976911214,0.3608,59273.0,59266.0,0.06747845]
[1724976911421,0.084344,59266.0,59265.0,3.77092]
[1724976911623,0.084346,59265.0,59260.0,0.00025317]
[1724976912122,0.084346,59265.0,59261.0,3.77]
[1724976912418,0.084346,59265.0,59260.0,0.00025317]
[1724976912811,0.3608,59261.0,59260.0,0.00125317]
[1724976913925,0.3608,59261.0,59260.0,0.00225317]
[1724976915023,0.3678,59261.0,59260.0,0.00225317]
[1724976915230,0.3678,59261.0,59260.0,0.88284517]
[1724976915821,0.3678,59261.0,59260.0,1.48284517]
[1724976916126,0.007,59261.0,59260.0,1.84364517]
[1724976917014,0.007,59261.0,59260.0,0.44740517]
[1724976918818,0.007,59261.0,59260.0,0.73740517]
[1724976922926,0.007,59261.0,59260.0,1.24364517]
[1724976923131,0.00025317,59271.0,59270.0,0.084338]
[1724976924825,0.00225317,59271.0,59270.0,0.085338]
[1724976925827,0.00225317,59271.0,59270.0,0.089848]
[1724976927423,0.00225317,59271.0,59270.0,0.090848]
[1724976927730,0.00025317,59271.0,59270.0,0.089848]
[1724976927930,0.00125317,59271.0,59270.0,0.089848]
[1724976928133,0.00125317,59271.0,59270.0,0.740648]
[1724976929125,0.00125317,59271.0,59270.0,4.510648]
[1724976929433,0.00025317,59271.0,59270.0,4.510648]
[1724976929630,0.00025317,59271.0,59270.0,4.509648]
[1724976930337,0.00025317,59271.0,59270.0,0.449648]
[1724976930729,0.00025317,59271.0,59270.0,0.739648]
[1724976931036,0.00125317,59271.0,59270.0,4.509648]
[1724976931231,0.00125317,59271.0,59270.0,4.593986]
[1724976931733,0.00025317,59271.0,59270.0,4.593986]
[1724976932237,0.3608,59284.0,59283.0,0.08432]
[1724976932420,0.3608,59284.0,59283.0,0.37432]
[1724976933724,0.3608,59288.0,59286.0,0.084314]
[1724976934438,0.03049532,59288.0,59287.0,0.084314]
[1724976934636,0.00025317,59289.0,59288.0,0.084313]
[1724976935236,0.0305476,59289.0,59288.0,0.374313]
[1724976935531,0.00025317,59289.0,59288.0,0.374313]
[1724976936138,0.00125317,59289.0,59288.0,0.375313]
[1724976938535,0.00125317,59289.0,59288.0,0.374313]
[1724976939136,0.00025317,59289.0,59288.0,0.374313]
[1724976939337,0.00125317,59289.0,59288.0,0.375313]
[1724976939738,0.00125317,59289.0,59288.0,0.376313]
[1724976940333,0.00125317,59289.0,59288.0,0.375313]
[1724976943135,0.00125317,59289.0,59288.0,0.376313]
[1724976944532,0.00025317,59289.0,59288.0,0.375313]
[1724976944735,0.00125317,59289.0,59288.0,0.376313]
[1724976945740,0.00125317,59289.0,59288.0,0.821426]
[1724976945934,0.00125317,59289.0,59288.0,0.737113]
[1724976946130,0.00025317,59289.0,59288.0,0.736113]
[1724976946336,0.00125317,59289.0,59288.0,0.821426]
[1724976947038,0.00125317,59289.0,59288.0,4.591426]
[1724976947229,0.00125317,59289.0,59288.0,4.590426]
[1724976949541,0.00125317,59289.0,59288.0,4.62023223]
[1724976950235,0.00125317,59289.0,59288.0,4.54091923]
[1724976950436,0.00125317,59289.0,59288.0,0.77091923]
[1724976951039,0.00125317,59289.0,59288.0,0.77791923]
[1724976951040,0.00025317,59289.0,59288.0,0.77791923]
[1724976951235,0.00025317,59289.0,59288.0,0.748113]
[1724976951845,0.00125317,59289.0,59288.0,0.740113]
[1724976952039,0.00125317,59289.0,59288.0,0.445113]
[1724976952246,0.03156449,59289.0,59288.0,0.005]
[1724976952547,0.08456417,59289.0,59288.0,0.005]
[1724976952745,0.00125317,59289.0,59288.0,0.005]
[1724976952936,0.00125317,59289.0,59288.0,0.089313]
[1724976953343,0.00125317,59289.0,59288.0,0.084313]
[1724976954338,0.00125317,59289.0,59288.0,0.085313]
[1724976955153,0.00125317,59289.0,59288.0,0.086313]
[1724976956141,0.00125317,59289.0,59288.0,0.085313]
[1724976956443,0.00125317,59289.0,59288.0,0.132713]
[1724976958243,0.00025317,59289.0,59288.0,0.131713]
[1724976958443,0.00125317,59289.0,59288.0,0.084313]
[1724976958844,0.084313,59288.0,59287.0,0.00452]
[1724976959044,0.084322,59281.0,59280.0,0.0039]
[1724976959245,0.083325,59279.0,59273.0,0.084333]
[1724976960751,0.083325,59279.0,59272.0,0.0039]
[1724976960752,0.083325,59279.0,59272.0,0.00842]
[1724976961059,1.189405,59279.0,59272.0,0.00842]
[1724976961649,1.479405,59279.0,59272.0,0.00842]
[1724976961853,1.481405,59279.0,59272.0,0.00842]
[1724976962258,0.084328,59278.0,59257.0,0.06724423]
[1724976962452,0.3608,59258.0,59256.0,0.084357]
[1724976962954,0.3608,59258.0,59242.0,0.08405529]
[1724976962955,0.084363,59253.0,59244.0,0.06724423]
[1724976963249,0.084363,59253.0,59241.0,0.0486]
[1724976963250,0.3608,59249.0,59243.0,0.00025317]
[1724976963453,0.3608,59244.0,59243.0,0.00025317]
[1724976963857,0.3608,59249.0,59243.0,0.00025317]
[1724976964055,0.3608,59249.0,59243.0,0.37462917]
[1724976965361,0.3608,59249.0,59243.0,0.39062917]
[1724976965565,0.3608,59249.0,59243.0,0.30625317]
[1724976965868,0.14036,59252.0,59248.0,0.29]
[1724976966267,0.36105317,59254.0,59248.0,0.29]
[1724976966563,0.39188128,59254.0,59248.0,0.29]
[1724976966758,0.39188128,59254.0,59249.0,0.084368]
[1724976967159,0.39188128,59254.0,59250.0,0.0464]
[1724976967361,0.36105317,59254.0,59250.0,0.0464]
[1724976968164,0.36105317,59254.0,59251.0,3.854365]
[1724976968862,0.36105317,59254.0,59252.0,0.084363]
[1724976970472,0.36205317,59254.0,59252.0,0.084363]
[1724976971062,0.36205317,59254.0,59253.0,0.084362]
[1724976971271,0.36305317,59254.0,59253.0,0.084362]
[1724976971761,0.00225317,59254.0,59253.0,0.084362]
[1724976972572,0.00325317,59254.0,59253.0,0.084362]
[1724976973557,0.00325317,59254.0,59253.0,0.374362]
[1724976977672,0.00025317,59254.0,59253.0,0.374362]
[1724976977977,0.00025317,59254.0,59253.0,0.377362]
[1724976978375,0.00025317,59254.0,59253.0,0.375362]
[1724976978576,0.00025317,59254.0,59253.0,0.379902]
[1724976978776,0.00225317,59254.0,59253.0,0.378902]
[1724976979775,0.36305317,59254.0,59253.0,0.088902]
[1724976980172,0.36305317,59254.0,59253.0,0.084362]
[1724976980770,0.36405317,59254.0,59253.0,0.084362]
[1724976981305,0.084364,59252.0,59251.0,0.001]
[1724976981497,0.084375,59244.0,59239.0,0.134181]
[1724976981690,0.445175,59244.0,59239.0,0.134181]
[1724976981896,0.951575,59244.0,59239.0,0.134181]
[1724976983204,0.951575,59244.0,59243.0,0.00925317]
[1724976983400,0.445175,59244.0,59243.0,0.00925317]
[1724976984617,0.445175,59244.0,59243.0,0.01625317]
[1724976984808,0.475926,59244.0,59243.0,0.01625317]
[1724976985303,0.3608,59244.0,59243.0,0.39063017]
[1724976985510,0.3608,59244.0,59243.0,0.43703017]
[1724976987619,0.17055823,59248.0,59243.0,0.43703017]
[1724976987620,0.03015823,59248.0,59247.0,0.084371]
[1724976987915,0.1404,59252.0,59247.0,0.084371]
[1724976988103,0.1404,59252.0,59248.0,0.084369]
[1724976989017,0.224764,59252.0,59248.0,0.084369]
[1724976989312,0.224764,59252.0,59248.0,0.087369]
[1724976989617,0.224764,59252.0,59248.0,0.037369]
[1724976989804,0.224764,59252.0,59249.0,3.77]
[1724976990001,0.3911511,59253.0,59248.0,0.003]
[1724976990503,0.3911511,59253.0,59252.0,0.084364]
[1724976991305,0.1817481,59253.0,59252.0,0.084364]
[1724976992210,0.1837481,59253.0,59252.0,0.084364]
[1724976992413,0.6837481,59253.0,59252.0,0.084364]
[1724976992804,0.1837481,59253.0,59252.0,0.13490602]
[1724976993508,0.6837481,59253.0,59252.0,0.084364]
[1724976994014,0.1837481,59253.0,59252.0,0.084364]
[1724976994407,0.084364,59252.0,59251.0,0.05054455]
[1724976994802,0.584365,59251.0,59250.0,0.05054455]
[1724976995606,0.5,59251.0,59250.0,0.084367]
[1724976996015,0.501,59252.0,59251.0,0.084365]
[1724976996608,0.5,59252.0,59251.0,0.084365]
[1724976997308,0.5,59252.0,59251.0,0.13491068]
[1724976997513,0.5,59252.0,59251.0,0.13491034]
[1724976997710,0.5,59252.0,59251.0,0.084365]
[1724976997912,0.5,59252.0,59251.0,0.13491046]
[1724976998313,0.501,59252.0,59251.0,0.084365]
[1724976998514,0.501,59252.0,59251.0,0.13490908]
[1724976998717,0.501,59252.0,59251.0,0.084365]
[1724976999714,0.501,59252.0,59251.0,0.1349093]
[1724976999913,0.501,59252.0,59251.0,0.13490928]
[1724977000823,0.501,59252.0,59251.0,0.084365]
[1724977001219,0.501,59252.0,59251.0,0.13490928]
[1724977002824,0.501,59252.0,59251.0,0.084365]
[1724977005325,0.001,59252.0,59251.0,0.084365]
[1724977006619,0.00025317,59254.0,59253.0,0.084362]
[1724977006819,0.00025317,59254.0,59253.0,0.374362]
[1724977008331,0.00025317,59254.0,59253.0,0.084362]
[1724977008525,0.86105317,59254.0,59250.0,0.0496]
[1724977009123,0.084365,59251.0,59250.0,0.0496]
[1724977009834,0.584365,59251.0,59250.0,0.0496]
[1724977010238,0.584365,59251.0,59250.0,0.0506]
[1724977010239,0.084365,59251.0,59250.0,0.0506]
[1724977010917,0.584365,59251.0,59250.0,0.001]
[1724977011125,1.090685,59251.0,59250.0,0.001]
[1724977011324,0.61906162,59251.0,59250.0,0.001]
[1724977011520,1.57986162,59251.0,59250.0,0.001]
[1724977011725,0.084371,59247.0,59246.0,0.05059091]
[1724977011926,0.876251,59247.0,59246.0,0.05059091]
[1724977012130,2.01098762,59247.0,59246.0,0.05059091]
[1724977012427,2.51098762,59247.0,59246.0,0.05059091]
[1724977013135,2.51198762,59247.0,59246.0,0.05159091]
[1724977013431,2.51198762,59247.0,59246.0,0.05259091]
[1724977013633,2.51698762,59247.0,59246.0,0.05259091]
[1724977014539,1.48590762,59247.0,59246.0,0.05259091]
[1724977014834,2.22698762,59247.0,59246.0,0.05259091]
[1724977015137,2.25810956,59247.0,59246.0,0.05259091]
[1724977015336,2.25810956,59247.0,59246.0,0.002]
[1724977015728,1.65810956,59247.0,59246.0,0.002]
[1724977016333,2.25810956,59247.0,59246.0,0.002]
[1724977017631,2.63248056,59247.0,59246.0,0.002]
[1724977019836,0.16875,59244.0,59243.0,0.00025317]
[1724977020038,0.52955,59244.0,59243.0,0.00025317]
[1724977020337,1.63595,59244.0,59243.0,0.00025317]
[1724977020536,2.16432662,59244.0,59243.0,0.00025317]
[1724977020736,0.5064,59243.0,59230.0,0.0479]
[1724977020935,0.3608,59231.0,59230.0,0.0479]
[1724977021340,0.445194,59231.0,59230.0,0.0479]
[1724977021543,0.945194,59231.0,59230.0,0.0479]
[1724977022235,0.99976,59231.0,59230.0,0.0479]
[1724977022431,0.52837662,59231.0,59230.0,0.132295]
[1724977022838,0.00025317,59236.0,59235.0,0.084388]
[1724977024144,0.03063514,59236.0,59235.0,0.084388]
[1724977024347,0.00325317,59236.0,59235.0,0.084388]
[1724977024843,0.00825317,59236.0,59235.0,0.084388]
[1724977026647,0.00825317,59236.0,59235.0,0.445188]
[1724977026834,0.00140001,59240.0,59235.0,0.3608]
[1724977027034,0.03671673,59240.0,59235.0,0.3608]
[1724977027240,0.03671673,59240.0,59239.0,0.445182]
[1724977027544,0.00152,59242.0,59241.0,0.084379]
[1724977027843,0.03811674,59243.0,59241.0,0.084379]
[1724977028034,0.5,59243.0,59242.0,0.084378]
[1724977028234,0.53648223,59243.0,59242.0,0.084378]
[1724977028639,0.56694889,59243.0,59242.0,0.084378]
[1724977029037,0.53046666,59243.0,59242.0,0.084378]
[1724977029942,0.53046666,59243.0,59242.0,0.132578]
[1724977030246,0.53346666,59243.0,59242.0,0.133578]
[1724977030449,0.53346666,59243.0,59242.0,0.639978]
[1724977030450,0.003,59243.0,59242.0,0.639978]
[1724977030747,0.00025317,59247.0,59246.0,0.084372]
[1724977031046,0.00025317,59247.0,59246.0,0.445172]
[1724977031946,0.00325317,59247.0,59246.0,0.445172]
[1724977032643,0.00525317,59247.0,59246.0,0.445172]
[1724977033432,0.00325317,59247.0,59246.0,0.445172]
[1724977034134,0.01025317,59247.0,59246.0,0.084372]
[1724977038347,0.00625317,59247.0,59246.0,0.084372]
[1724977039650,0.00425317,59247.0,59246.0,0.084372]
[1724977040144,0.00225317,59247.0,59246.0,0.084372]
[1724977040365,0.00425317,59247.0,59246.0,0.084372]
[1724977041242,0.00725317,59247.0,59246.0,0.084372]
[1724977042054,0.00925317,59247.0,59246.0,0.084372]
[1724977042939,0.01025317,59247.0,59246.0,0.084372]
[1724977043348,0.00625317,59247.0,59246.0,0.084372]
[1724977043548,0.00725317,59247.0,59246.0,0.084372]
[1724977043858,0.00325317,59247.0,59246.0,0.084372]
[1724977044660,0.00125317,59247.0,59246.0,0.085372]
[1724977045342,0.00425317,59247.0,59246.0,0.084372]
[1724977046047,0.00325317,59247.0,59246.0,0.086372]
[1724977046846,0.00025317,59247.0,59246.0,0.084372]
[1724977047048,0.00525317,59247.0,59246.0,0.084372]
[1724977049052,0.00525317,59247.0,59244.0,0.3608]
[1724977049258,0.084378,59242.0,59241.0,0.00025317]
[1724977049959,0.584378,59242.0,59241.0,0.00025317]
[1724977050142,0.084378,59242.0,59241.0,0.00025317]
[1724977050649,0.223778,59242.0,59241.0,0.00025317]
[1724977050855,0.723778,59242.0,59241.0,0.00125317]
[1724977051047,0.76035141,59242.0,59241.0,0.00125317]
[1724977051248,0.76035141,59242.0,59241.0,0.00225317]
[1724977051249,0.29734264,59242.0,59241.0,0.00225317]
[1724977051755,0.79734264,59242.0,59241.0,0.00225317]
[1724977052354,0.80234264,59242.0,59241.0,0.00125317]
[1724977056949,0.57856464,59242.0,59241.0,0.08563217]
[1724977057147,0.04199123,59242.0,59241.0,0.08563217]
[1724977058163,0.012,59242.0,59241.0,0.08563217]
[1724977061060,0.012,59242.0,59241.0,0.00125317]
[1724977062164,0.457178,59242.0,59241.0,0.00125317]
[1724977062548,0.957178,59242.0,59241.0,0.00125317]
[1724977062754,0.99375141,59242.0,59241.0,0.00125317]
[1724977066071,1.07812941,59242.0,59241.0,0.00125317]
[1724977067069,1.07812941,59242.0,59241.0,0.00147317]
[1724977067260,2.18452941,59242.0,59241.0,0.00147317]
[1724977067459,0.084391,59233.0,59232.0,0.0557]
[1724977067670,0.445191,59233.0,59232.0,0.0518]
[1724977068068,0.945191,59233.0,59232.0,0.0518]
[1724977068575,0.98176441,59233.0,59232.0,0.0518]
[1724977069162,0.98176441,59233.0,59232.0,0.0548]
[1724977069366,0.98176441,59233.0,59232.0,0.0598]
[1724977070464,0.6517187,59233.0,59232.0,0.0598]
[1724977072771,0.61514529,59233.0,59232.0,0.0598]
[1724977073559,0.11514529,59233.0,59232.0,0.0598]
[1724977077473,0.00136,59235.0,59234.0,0.084389]
[1724977077682,0.00136,59238.0,59237.0,0.084385]
[1724977077873,0.084382,59239.0,59238.0,0.084384]
[1724977078970,0.0329409,59239.0,59236.0,0.29]
[1724977079170,0.0329409,59239.0,59234.0,0.445189]
[1724977079780,0.0359409,59239.0,59234.0,0.445189]
[1724977079970,0.0339409,59239.0,59234.0,0.445189]
[1724977080676,0.0309409,59239.0,59234.0,0.448189]
[1724977080980,0.084387,59236.0,59234.0,0.448189]
[1724977082179,0.084387,59236.0,59234.0,0.447189]
[1724977082473,0.084387,59236.0,59234.0,0.448189]
[1724977082670,0.084388,59235.0,59234.0,0.003]
[1724977083277,0.584388,59235.0,59234.0,0.003]
[1724977083777,0.084388,59235.0,59234.0,0.002]
[1724977083980,0.084388,59235.0,59234.0,0.003]
[1724977084484,0.584388,59235.0,59234.0,0.003]
[1724977084783,0.084388,59235.0,59234.0,0.003]
[1724977085177,0.584388,59235.0,59234.0,0.003]
[1724977085570,0.53602162,59236.0,59227.0,7e-07]
[1724977085774,0.168816,59221.0,59220.0,8.8e-07]
[1724977086081,0.084441,59198.0,59197.0,0.0943]
[1724977086472,0.084446,59195.0,59191.0,0.0465]
[1724977086679,0.5,59197.0,59191.0,0.0465]
[1724977086878,0.62924,59197.0,59192.0,0.3608]
[1724977087073,0.00025339,59199.0,59195.0,0.29]
[1724977087279,0.00025339,59199.0,59197.0,0.3608]
[1724977087681,0.50025339,59199.0,59197.0,0.3608]
[1724977087880,0.00025339,59199.0,59197.0,0.3608]
[1724977088070,0.00025339,59199.0,59198.0,0.50676]
[1724977088275,0.00025339,59199.0,59198.0,0.591201]
[1724977088477,0.00025339,59199.0,59198.0,1.191201]
[1724977088681,0.5,59212.0,59205.0,0.08443]
[1724977088878,0.5,59212.0,59207.0,0.3608]
[1724977089184,0.5,59217.0,59207.0,0.3608]
[1724977089384,0.53586095,59217.0,59207.0,0.3608]
[1724977089575,0.53586095,59217.0,59207.0,0.445227]
[1724977090183,0.5,59217.0,59215.0,0.29]
[1724977090386,0.50025339,59218.0,59212.0,0.3608]
[1724977090585,0.00025339,59218.0,59212.0,0.3608]
[1724977091581,0.29,59217.0,59212.0,0.3608]
[1724977092292,0.812,59217.0,59212.0,0.3608]
[1724977092490,0.522,59217.0,59212.0,0.3608]
[1724977092686,0.514,59217.0,59212.0,0.3608]
[1724977092887,0.022,59217.0,59212.0,0.3618]
[1724977094285,0.522,59217.0,59212.0,0.3618]
[1724977095801,0.522,59217.0,59212.0,0.44622]
[1724977096195,0.3608,59213.0,59212.0,0.001]
[1724977096493,0.735219,59213.0,59212.0,0.001]
[1724977096698,1.096019,59213.0,59212.0,0.001]
[1724977096891,1.596019,59213.0,59212.0,0.001]
[1724977097506,0.084422,59212.0,59206.0,0.00025339]
[1724977097693,0.084423,59211.0,59206.0,0.00025339]
[1724977097998,0.64176,59210.0,59206.0,0.00025339]
[1724977098198,0.3608,59207.0,59206.0,0.00025339]
[1724977098796,0.8608,59207.0,59206.0,0.00025339]
[1724977099103,0.3608,59207.0,59206.0,0.00125339]
[1724977099295,0.084428,59207.0,59206.0,0.00125339]
[1724977099491,0.735228,59207.0,59206.0,0.00225339]
[1724977099691,1.243228,59207.0,59206.0,0.00225339]
[1724977101202,1.243228,59207.0,59206.0,0.00125339]
[1724977101392,1.257228,59207.0,59206.0,0.00225339]
[1724977101700,1.28810064,59207.0,59206.0,0.00225339]
[1724977101891,0.99810064,59207.0,59206.0,0.00225339]
[1724977104104,1.28810064,59207.0,59206.0,0.00225339]
[1724977105494,1.1094657,59207.0,59206.0,0.00225339]
[1724977106206,0.63730064,59207.0,59206.0,0.00225339]
[1724977106392,0.77910064,59207.0,59206.0,0.00225339]
[1724977107201,0.69467264,59207.0,59206.0,0.00225339]
[1724977107601,0.55287264,59207.0,59206.0,0.08668239]
[1724977107811,0.522,59207.0,59206.0,0.44748239]
[1724977109700,0.522,59207.0,59206.0,0.08668239]
[1724977110099,1.1728,59207.0,59206.0,0.08668239]
[1724977110900,1.257228,59207.0,59206.0,0.08668239]
[1724977111202,0.896428,59207.0,59206.0,0.08668239]
[1724977111597,0.522,59207.0,59206.0,0.08668239]
[1724977117306,0.522,59207.0,59206.0,0.08690239]
[1724977124012,0.522,59207.0,59206.0,0.13710239]
[1724977125318,0.606428,59207.0,59206.0,0.00247339]
[1724977127225,0.522,59207.0,59206.0,0.08690239]
[1724977129229,0.606428,59207.0,59206.0,0.00247339]
[1724977130318,0.64300319,59207.0,59206.0,0.00247339]
[1724977130716,0.93300319,59207.0,59206.0,0.00247339]
[1724977131014,0.98310319,59207.0,59206.0,0.00247339]
[1724977132626,1.57425119,59207.0,59206.0,0.00247339]
[1724977132827,1.48982319,59207.0,59206.0,0.00247339]
[1724977133127,0.98310319,59207.0,59206.0,0.00247339]
[1724977135631,1.48982319,59207.0,59206.0,0.00247339]
[1724977135929,2.08982319,59207.0,59206.0,0.00247339]
[1724977136123,1.48982319,59207.0,59206.0,0.00247339]
[1724977136319,2.08982319,59207.0,59206.0,0.00247339]
[1724977136523,1.48982319,59207.0,59206.0,0.00247339]
[1724977136831,2.08982319,59207.0,59206.0,0.00247339]
[1724977137028,1.48982319,59207.0,59206.0,0.00247339]
[1724977137232,2.08982319,59207.0,59206.0,0.00247339]
[1724977137425,1.48982319,59207.0,59206.0,0.00247339]
[1724977137626,2.17425119,59207.0,59206.0,0.00247339]
[1724977138132,0.084442,59197.0,59196.0,0.0039]
[1724977138332,1.0116,59197.0,59186.0,0.0039]
[1724977138630,0.21128,59202.0,59182.0,0.3608]
[1724977138631,0.3608,59189.0,59182.0,0.088363]
[1724977138834,0.3608,59183.0,59182.0,0.084463]
[1724977139638,0.8598,59183.0,59182.0,0.084463]
[1724977139937,0.8598,59183.0,59177.0,0.09905339]
[1724977140236,0.03557519,59182.0,59177.0,0.09905339]
[1724977140629,0.5,59181.0,59177.0,0.09905339]
[1724977141729,0.5,59181.0,59177.0,0.10405339]
[1724977141925,0.5,59181.0,59180.0,0.084466]
[1724977142128,0.53557519,59182.0,59181.0,0.084465]
[1724977142534,0.001,59183.0,59182.0,0.084464]
[1724977143130,0.50140001,59184.0,59182.0,0.084464]
[1724977143325,0.5,59184.0,59182.0,0.084464]
[1724977143833,0.5,59184.0,59183.0,0.084462]
[1724977144042,0.5,59184.0,59183.0,0.675844]
[1724977144334,0.00025339,59188.0,59187.0,0.084456]
[1724977144637,0.00025339,59188.0,59187.0,4.215256]
[1724977144840,0.00025339,59188.0,59187.0,4.722136]
[1724977145032,0.00025339,59188.0,59187.0,4.215256]
[1724977145425,0.00025339,59188.0,59187.0,0.445256]
[1724977145742,0.00025339,59188.0,59187.0,0.084456]
[1724977146531,0.00125339,59188.0,59187.0,0.084456]
[1724977146841,0.00625339,59188.0,59187.0,0.084456]
[1724977147237,0.00525339,59188.0,59187.0,0.084456]
[1724977149632,0.00625339,59188.0,59187.0,0.084456]
[1724977150242,0.09070839,59188.0,59187.0,0.084456]
[1724977150434,0.084456,59187.0,59186.0,0.3608]
[1724977150635,0.374456,59187.0,59186.0,0.3608]
[1724977150838,0.00625339,59188.0,59186.0,0.3608]
[1724977151036,0.5,59187.0,59186.0,0.445258]
[1724977151938,0.50925339,59188.0,59187.0,0.084456]
[1724977152138,0.00925339,59188.0,59187.0,0.084456]
[1724977152635,0.00525339,59188.0,59187.0,0.084456]
[1724977153131,0.00425339,59188.0,59187.0,0.084456]
[1724977153750,0.00625339,59188.0,59187.0,0.084456]
[1724977154444,0.00725339,59188.0,59187.0,0.084456]
[1724977155143,0.00225339,59188.0,59187.0,0.084456]
[1724977155346,0.00825339,59188.0,59187.0,0.084456]
[1724977156432,0.00825339,59188.0,59187.0,0.134156]
[1724977156638,0.01125339,59188.0,59187.0,0.134156]
[1724977160843,0.0039,59194.0,59193.0,0.084448]
[1724977161151,0.588337,59201.0,59193.0,0.3608]
[1724977161339,0.62088637,59201.0,59200.0,0.3608]
[1724977162246,0.584437,59201.0,59200.0,0.3608]
[1724977163365,0.54277204,59201.0,59200.0,0.445238]
[1724977163847,0.34263237,59201.0,59200.0,0.445238]
[1724977164053,0.35363237,59201.0,59200.0,0.446238]
[1724977165041,0.35263237,59201.0,59200.0,0.447238]
[1724977165243,0.05277204,59201.0,59200.0,0.447238]
[1724977170352,0.05277204,59201.0,59200.0,0.787138]
[1724977171360,0.05277204,59201.0,59200.0,0.497138]
[1724977171564,0.05277204,59201.0,59200.0,0.787138]
[1724977173852,0.023,59201.0,59200.0,0.787138]
[1724977174048,0.03670276,59206.0,59205.0,0.084431]
[1724977174259,0.03670276,59206.0,59205.0,0.735231]
[1724977174556,0.00025339,59206.0,59205.0,0.735231]
[1724977174959,0.00025339,59206.0,59205.0,1.241951]
[1724977175260,0.03644937,59211.0,59210.0,0.084424]
[1724977175466,0.5,59216.0,59215.0,0.084416]
[1724977175653,0.53644937,59218.0,59216.0,0.084415]
[1724977175859,0.5,59217.0,59216.0,0.084415]
[1724977176159,0.5,59217.0,59216.0,0.445215]
[1724977176354,0.03644937,59218.0,59217.0,0.084414]
[1724977176658,0.03644937,59219.0,59218.0,0.084412]
[1724977176853,0.1,59220.0,59219.0,0.134011]
[1724977178962,0.101,59220.0,59219.0,0.134011]
[1724977179154,0.107,59220.0,59219.0,0.134011]
[1724977179657,0.103,59220.0,59219.0,0.134011]
[1724977180362,0.00025339,59222.0,59221.0,0.084408]
[1724977180557,0.00025339,59222.0,59221.0,0.684408]
[1724977180863,0.00025339,59222.0,59221.0,1.190968]
[1724977182153,0.03439179,59226.0,59221.0,1.190968]
[1724977182359,0.0039,59231.0,59230.0,0.084395]
[1724977182557,0.50140001,59233.0,59226.0,0.0993]
[1724977182757,0.33888144,59233.0,59232.0,0.374392]
[1724977183154,0.5,59234.0,59233.0,0.084391]
[1724977183358,0.5,59235.0,59234.0,0.084389]
[1724977183552,0.5,59235.0,59234.0,0.374389]
[1724977183762,0.5,59237.0,59235.0,0.084388]
[1724977184264,0.5,59237.0,59236.0,0.3608]
[1724977184471,0.5,59237.0,59236.0,0.445187]
[1724977184661,0.07811,59238.0,59236.0,0.445187]